bitfinex/quotes_BTCUSD_20241120
["timestamp","ask_amount","ask_price","bid_price","bid_amount"]
[1732122427880,0.10711512,94188.0,94158.0,0.10711512]
[1732122428584,0.10711512,94188.0,94148.0,0.0037142]
[1732122428804,0.01973881,94187.0,94150.0,0.1]
[1732122429035,0.01973881,94187.0,94148.0,0.0017142]
[1732122429036,0.01,94179.0,94148.0,0.0017142]
[1732122429237,0.20505393,94178.0,94148.0,0.0017142]
[1732122429424,0.01973881,94177.0,94148.0,0.0017142]
[1732122429677,0.12685393,94176.0,94148.0,0.0017142]
[1732122429885,0.01973881,94175.0,94148.0,0.0017142]
[1732122430104,0.10711512,94174.0,94148.0,0.0017142]
[1732122430753,0.106194,94167.0,94148.0,0.0017142]
[1732122430959,0.15361512,94166.0,94148.0,0.0017142]
[1732122431173,0.033,94164.0,94148.0,0.0017142]
[1732122431388,0.01,94161.0,94148.0,0.0017142]
[1732122431596,0.1268749,94160.0,94148.0,0.0017142]
[1732122431798,0.13649261,94160.0,94148.0,0.0017142]
[1732122432009,0.01975702,94159.0,94148.0,0.0017142]
[1732122432232,0.12687205,94158.0,94148.0,0.0017142]
[1732122432447,0.01975693,94157.0,94148.0,0.0017142]
[1732122432689,0.0774,94163.0,94148.0,0.0017142]
[1732122432690,0.13687205,94156.0,94148.0,0.0017142]
[1732122432924,0.13687205,94156.0,94125.0,0.0017096]
[1732122432925,0.12616545,94148.0,94125.0,0.0017096]
[1732122433199,0.00994945,94142.0,94125.0,0.0017096]
[1732122433425,0.10711512,94141.0,94125.0,0.0017096]
[1732122433632,0.12686361,94141.0,94125.0,0.0017096]
[1732122433865,0.09845121,94140.0,94125.0,0.0017096]
[1732122434094,0.12686633,94139.0,94125.0,0.0017096]
[1732122434305,0.10711512,94139.0,94125.0,0.0017096]
[1732122434958,0.10711512,94139.0,94121.0,0.0017094]
[1732122434959,0.01,94132.0,94121.0,0.0017094]
[1732122435209,0.00994945,94130.0,94121.0,0.0017094]
[1732122435433,0.10711512,94129.0,94121.0,0.0017094]
[1732122437820,0.01974415,94128.0,94121.0,0.0017094]
[1732122438065,0.12685927,94127.0,94121.0,0.0017094]
[1732122438323,0.12680298,94127.0,94121.0,0.0017094]
[1732122438814,0.01968786,94126.0,94121.0,0.0017094]
[1732122439042,0.10711512,94125.0,94121.0,0.0017094]
[1732122439790,0.10711512,94125.0,94121.0,0.00084884]
[1732122440029,0.10711512,94125.0,94082.0,0.01]
[1732122440030,0.002,94111.0,94098.0,0.0771]
[1732122440259,0.002,94110.0,94098.0,0.0771]
[1732122440487,0.00994945,94115.0,94098.0,0.0771]
[1732122440706,0.00201219,94114.0,94098.0,0.0771]
[1732122441181,0.10711512,94129.0,94099.0,0.10711512]
[1732122441182,0.00201219,94123.0,94099.0,0.10711512]
[1732122441429,0.01,94148.0,94099.0,0.10817775]
[1732122441430,0.00201219,94119.0,94099.0,0.10817775]
[1732122441660,0.1,94147.0,94098.0,0.0771]
[1732122441661,0.00201219,94112.0,94098.0,0.0771]
[1732122441890,0.1,94138.0,94098.0,0.0771]
[1732122441891,0.00201219,94109.0,94098.0,0.0771]
[1732122443289,0.04343711,94127.0,94098.0,0.0771]
[1732122443290,0.01,94123.0,94098.0,0.0771]
[1732122443529,0.01,94121.0,94100.0,0.1]
[1732122443778,0.00201219,94111.0,94100.0,0.1]
[1732122444013,0.00201219,94111.0,94100.0,0.09959331]
[1732122444734,0.00201219,94111.0,94098.0,0.0788146]
[1732122445445,0.00201219,94107.0,94098.0,0.0017146]
[1732122446648,0.04608681,94107.0,94098.0,0.0017146]
[1732122446868,0.00201219,94107.0,94098.0,0.0017146]
[1732122450021,0.08460023,94110.0,94099.0,0.10711512]
[1732122450255,0.08460023,94110.0,94101.0,0.0796]
[1732122450256,0.042464,94110.0,94101.0,0.0796]
[1732122450486,0.042464,94110.0,94103.0,0.1]
[1732122450704,0.00201219,94133.0,94104.0,0.10817766]
[1732122450938,0.042455,94123.0,94105.0,0.1]
[1732122451171,0.042455,94123.0,94107.0,0.0796]
[1732122451415,0.00201219,94136.0,94109.0,0.1]
[1732122451416,0.0314902,94135.0,94109.0,0.1]
[1732122451632,0.042452,94132.0,94110.0,0.10711512]
[1732122452346,0.042452,94132.0,94111.0,0.1]
[1732122452565,0.04446419,94132.0,94112.0,0.10711512]
[1732122452789,0.0196952,94128.0,94113.0,0.1]
[1732122453028,0.00201219,94118.0,94108.0,0.0456]
[1732122453262,0.00201219,94115.0,94098.0,0.0017146]
[1732122453495,0.00201219,94109.0,94098.0,0.0017146]
[1732122453744,0.11879073,94126.0,94098.0,0.10882972]
[1732122453745,0.0196952,94108.0,94098.0,0.10882972]
[1732122453980,0.00201219,94115.0,94098.0,0.10882972]
[1732122453981,0.01970906,94107.0,94098.0,0.10882972]
[1732122454429,0.01970906,94106.0,94098.0,0.0017146]
[1732122454654,0.01970906,94105.0,94098.0,0.0017146]
[1732122454878,0.00201219,94107.0,94098.0,0.0017146]
[1732122454879,0.01970906,94104.0,94098.0,0.0017146]
[1732122455101,0.01970906,94103.0,94098.0,0.0017146]
[1732122455607,0.00201219,94107.0,94098.0,0.0017146]
[1732122455608,0.03527841,94102.0,94100.0,0.0017152]
[1732122455836,0.03156935,94101.0,94100.0,0.0017152]
[1732122457470,0.04387647,94101.0,94100.0,0.0017152]
[1732122457704,0.03161266,94101.0,94100.0,0.0017152]
[1732122458397,0.04486824,94101.0,94100.0,0.0017152]
[1732122459589,0.03161266,94101.0,94100.0,0.0017152]
[1732122459818,0.04486763,94101.0,94100.0,0.0017152]
[1732122460073,0.03161266,94101.0,94100.0,0.0017152]
[1732122460535,0.04486735,94101.0,94100.0,0.0017152]
[1732122460772,0.0448672,94101.0,94100.0,0.0017152]
[1732122461004,0.00201219,94113.0,94100.0,0.0017152]
[1732122461231,0.03169025,94110.0,94100.0,0.0017152]
[1732122461445,0.00201219,94113.0,94100.0,0.0017152]
[1732122461446,0.03169025,94107.0,94100.0,0.0017152]
[1732122461686,0.04494496,94106.0,94100.0,0.0017152]
[1732122461894,0.01325471,94106.0,94100.0,0.0017152]
[1732122462124,0.03169025,94108.0,94100.0,0.0017152]
[1732122462125,0.01325471,94105.0,94100.0,0.0017152]
[1732122462360,0.01325471,94104.0,94100.0,0.0017152]
[1732122462588,0.04494496,94103.0,94100.0,0.0017152]
[1732122462830,0.04494496,94102.0,94100.0,0.0017152]
[1732122463060,0.04494496,94101.0,94100.0,0.0017152]
[1732122463741,0.04494496,94101.0,94100.0,0.20883032]
[1732122464851,0.04494496,94101.0,94100.0,0.0017152]
[1732122465062,0.03169025,94101.0,94100.0,0.0017152]
[1732122465921,0.04494555,94101.0,94100.0,0.0017152]
[1732122466133,0.0766358,94101.0,94100.0,0.0017152]
[1732122467064,0.04494555,94101.0,94100.0,0.0017152]
[1732122467714,0.06478548,94101.0,94100.0,0.0017152]
[1732122469684,0.07478548,94101.0,94100.0,0.0017152]
[1732122470156,0.06478548,94101.0,94100.0,0.0017152]
[1732122470371,0.07679767,94101.0,94100.0,0.0017152]
[1732122470625,0.00201219,94085.0,94076.0,0.0753]
[1732122470846,0.01,94092.0,94077.0,0.10711512]
[1732122471081,0.03174889,94084.0,94077.0,0.10711512]
[1732122471294,0.01,94091.0,94077.0,0.10711512]
[1732122471552,0.01,94092.0,94077.0,0.10711512]
[1732122471960,0.0337595,94095.0,94077.0,0.10711512]
[1732122471961,0.01,94091.0,94077.0,0.10711512]
[1732122474085,0.01,94091.0,94071.0,0.1]
[1732122474086,0.00201219,94085.0,94071.0,0.1]
[1732122474583,0.2369853,94094.0,94021.0,0.002]
[1732122474584,0.01,94077.0,94058.0,0.0468]
[1732122474794,0.09479412,94089.0,94057.0,0.0827]
[1732122474795,0.00201219,94067.0,94057.0,0.0827]
[1732122475011,0.01,94065.0,94045.0,0.1295]
[1732122475226,0.00201219,94061.0,94045.0,0.1295]
[1732122475467,0.00201219,94061.0,94045.0,0.0827]
[1732122476142,0.00201219,94061.0,94033.0,0.0468]
[1732122476143,0.01,94057.0,94036.0,0.0832134]
[1732122476351,0.01,94054.0,94037.0,0.10711512]
[1732122476789,0.01,94054.0,94036.0,0.0832134]
[1732122476790,0.00201219,94052.0,94036.0,0.0832134]
[1732122477003,0.00201219,94050.0,94036.0,0.0832134]
[1732122477217,0.01201219,94050.0,94036.0,0.0832134]
[1732122478349,0.01201219,94050.0,94036.0,0.0017134]
[1732122478593,0.10711512,94063.0,94036.0,0.0017134]
[1732122478594,0.00201219,94044.0,94036.0,0.0017134]
[1732122478830,0.10711512,94063.0,94036.0,0.0017134]
[1732122478831,0.01201219,94037.0,94036.0,0.0017134]
[1732122480771,0.04360214,94037.0,94036.0,0.0017134]
[1732122481200,0.01201219,94037.0,94036.0,0.0017134]
[1732122481439,0.11912731,94037.0,94036.0,0.0017134]
[1732122481677,0.15072059,94037.0,94036.0,0.0017134]
[1732122482197,0.16139978,94037.0,94036.0,0.0017134]
[1732122482647,0.2126906,94037.0,94036.0,0.0017134]
[1732122482852,0.2356906,94037.0,94036.0,0.0017134]
[1732122483070,0.2456906,94037.0,94036.0,0.0017134]
[1732122483281,0.2456906,94037.0,94011.0,0.0004]
[1732122483282,0.03501219,94032.0,94011.0,0.0004]
[1732122483523,0.11912731,94032.0,94011.0,0.0004]
[1732122483755,0.15068343,94032.0,94011.0,0.0004]
[1732122484242,0.170406,94032.0,94011.0,0.0004]
[1732122485355,0.13884988,94032.0,94011.0,0.0004]
[1732122485791,0.12683769,94031.0,94011.0,0.0004]
[1732122486041,0.01972257,94030.0,94011.0,0.0004]
[1732122486243,0.10711512,94029.0,94011.0,0.0004]
[1732122486962,0.01201219,94028.0,94017.0,0.081]
[1732122487191,0.00201219,94028.0,94017.0,0.081]
[1732122487617,0.01201219,94028.0,94017.0,0.081]
[1732122487852,0.00201219,94028.0,94017.0,0.081]
[1732122488268,0.01201219,94028.0,94017.0,0.081]
[1732122488716,0.01201219,94028.0,94011.0,0.0004]
[1732122488926,0.11912731,94028.0,94011.0,0.0004]
[1732122489447,0.11839448,94028.0,94011.0,0.0004]
[1732122489682,0.01127936,94028.0,94011.0,0.0004]
[1732122490580,0.00127936,94034.0,94011.0,0.00146362]
[1732122490817,0.00127936,94034.0,94028.0,0.0754]
[1732122491574,0.01127936,94028.0,94011.0,0.0004]
[1732122491774,0.11839448,94028.0,94011.0,0.0004]
[1732122493579,0.10839448,94028.0,94011.0,0.0004]
[1732122493810,0.00127936,94028.0,94011.0,0.0004]
[1732122494531,0.00127936,94028.0,94027.0,0.00139998]
[1732122495018,0.01127936,94028.0,94027.0,0.00139998]
[1732122495234,0.00127936,94028.0,94027.0,0.00139998]
[1732122495447,0.01,94030.0,94027.0,0.00139998]
[1732122495448,0.00127936,94029.0,94027.0,0.00139998]
[1732122496320,0.00127936,94033.0,94027.0,0.00139998]
[1732122496526,0.01,94030.0,94027.0,0.00139998]
[1732122496971,0.00127936,94033.0,94027.0,0.00139998]
[1732122497194,0.04227247,94037.0,94027.0,0.00139998]
[1732122497195,0.04227247,94037.0,94029.0,0.0826]
[1732122497653,0.02969056,94069.0,94028.0,0.0485]
[1732122497654,0.00127936,94052.0,94031.0,0.1]
[1732122497863,0.00127936,94052.0,94032.0,0.00106332]
[1732122498371,0.04358856,94052.0,94032.0,0.00106332]
[1732122498583,0.00106344,94051.0,94031.0,0.20711512]
[1732122499018,0.04358856,94052.0,94031.0,0.20711512]
[1732122499019,0.04358856,94052.0,94032.0,0.00106332]
[1732122499699,0.00106344,94051.0,94031.0,0.20711512]
[1732122500376,0.00106344,94051.0,94032.0,0.00106332]
[1732122500590,0.017652,94052.0,94032.0,0.00106332]
[1732122500834,0.01,94053.0,94034.0,0.1]
[1732122501060,0.01970144,94073.0,94036.0,0.1]
[1732122501061,0.04383133,94056.0,94036.0,0.1]
[1732122501344,0.04383133,94056.0,94028.0,0.04341738]
[1732122501345,0.02970144,94073.0,94039.0,0.0818]
[1732122501561,0.0813,94088.0,94040.0,0.23011512]
[1732122501562,0.01,94069.0,94040.0,0.23011512]
[1732122501791,0.10100144,94088.0,94040.0,0.23011512]
[1732122501792,0.01,94072.0,94040.0,0.23011512]
[1732122502020,0.01,94096.0,94040.0,0.23011512]
[1732122502021,0.083,94099.0,94043.0,0.0474]
[1732122502308,0.01,94082.0,94052.0,0.1255]
[1732122502511,0.01,94082.0,94053.0,0.20711512]
[1732122502726,0.01,94082.0,94014.0,0.002]
[1732122502727,0.01,94080.0,94041.0,0.1255]
[1732122502955,0.04272536,94089.0,94031.0,0.0008575]
[1732122502956,0.01,94037.0,94031.0,0.0008575]
[1732122503677,0.01,94033.0,94031.0,0.0008575]
[1732122507040,0.05329423,94033.0,94031.0,0.0008575]
[1732122508413,0.01,94032.0,94031.0,0.0008575]
[1732122512089,0.0298,94032.0,94031.0,0.0008575]
[1732122512964,0.02979818,94032.0,94031.0,0.0008575]
[1732122513382,0.11069818,94032.0,94031.0,0.0008575]
[1732122513817,0.02979818,94032.0,94031.0,0.0008575]
[1732122514031,0.01,94032.0,94031.0,0.0008575]
[1732122514464,0.02979976,94032.0,94031.0,0.0008575]
[1732122515592,0.05677876,94032.0,94031.0,0.0008575]
[1732122515797,0.01551616,94032.0,94031.0,0.0008575]
[1732122516250,0.0017164,94032.0,94031.0,0.0008575]
[1732122522351,0.10883152,94032.0,94031.0,0.0008575]
[1732122523084,0.0017164,94032.0,94031.0,0.0008575]
[1732122523322,0.23308285,94041.0,94031.0,0.0008575]
[1732122523323,0.0430954,94041.0,94031.0,0.0008575]
[1732122523558,0.09499372,94062.0,94032.0,0.10817846]
[1732122523762,0.09499372,94061.0,94033.0,0.0493]
[1732122523999,0.09499372,94063.0,94034.0,0.10817838]
[1732122524243,0.10711512,94060.0,94033.0,0.0493]
[1732122524471,0.01,94053.0,94031.0,0.0008575]
[1732122524671,0.1,94058.0,94031.0,0.0008575]
[1732122524672,0.01,94049.0,94031.0,0.0008575]
[1732122524912,0.10711512,94048.0,94031.0,0.0008575]
[1732122525144,0.01,94045.0,94031.0,0.0008575]
[1732122525420,0.10711512,94044.0,94031.0,0.0008575]
[1732122525878,0.01,94041.0,94031.0,0.0008575]
[1732122526110,0.10711512,94040.0,94031.0,0.0008575]
[1732122526955,0.0779,94039.0,94031.0,0.0008575]
[1732122527176,0.10711512,94038.0,94031.0,0.0008575]
[1732122527723,0.12691508,94038.0,94031.0,0.0008575]
[1732122528323,0.10711512,94038.0,94031.0,0.0008575]
[1732122530501,0.06711512,94038.0,94031.0,0.0008575]
[1732122531607,0.08692452,94038.0,94031.0,0.0008575]
[1732122532484,0.0198094,94037.0,94031.0,0.0008575]
[1732122532722,0.10711512,94036.0,94031.0,0.0008575]
[1732122532938,0.12696998,94036.0,94031.0,0.0008575]
[1732122533165,0.01985486,94035.0,94031.0,0.0008575]
[1732122533369,0.12696998,94034.0,94031.0,0.0008575]
[1732122533802,0.01985486,94033.0,94031.0,0.0008575]
[1732122534003,0.10711512,94033.0,94031.0,0.0008575]
[1732122536278,0.0198621,94032.0,94031.0,0.0008575]
[1732122536475,0.10711512,94032.0,94031.0,0.0008575]
[1732122536680,0.12697859,94032.0,94031.0,0.0008575]
[1732122536945,0.10711512,94032.0,94031.0,0.0008575]
[1732122537575,0.12698034,94032.0,94031.0,0.0008575]
[1732122539583,0.10711512,94032.0,94031.0,0.0008575]
[1732122539795,0.10711512,94032.0,94007.0,0.06795748]
[1732122539997,0.10711512,94031.0,94007.0,0.06795748]
[1732122540422,0.0781,94030.0,94005.0,0.0017152]
[1732122540575,0.13011512,94029.0,94005.0,0.0017152]
[1732122540836,0.01986833,94028.0,94005.0,0.0017152]
[1732122541080,0.13011512,94029.0,94005.0,0.0017152]
[1732122541081,0.12698345,94027.0,94005.0,0.0017152]
[1732122541283,0.01986833,94026.0,94005.0,0.0017152]
[1732122541530,0.04220606,94031.0,94006.0,0.0496]
[1732122541993,0.1,94042.0,94006.0,0.0496]
[1732122542208,0.01,94035.0,94006.0,0.0496]
[1732122542433,0.10711512,94034.0,94006.0,0.0496]
[1732122542875,0.10711512,94034.0,94007.0,0.0794]
[1732122543092,0.01,94047.0,94008.0,0.00106363]
[1732122543312,0.1117124,94052.0,94008.0,0.00106363]
[1732122543313,0.10711512,94042.0,94008.0,0.00106363]
[1732122543526,0.04438015,94044.0,94009.0,0.10711512]
[1732122543747,0.0017128,94044.0,94013.0,0.1232]
[1732122543964,0.0017128,94044.0,94015.0,0.2232]
[1732122544177,0.0017128,94044.0,94026.0,0.01]
[1732122544446,0.0017128,94044.0,94028.0,0.1]
[1732122544704,0.0017128,94044.0,94029.0,0.10711512]
[1732122545153,0.0017128,94044.0,94030.0,0.10711512]
[1732122545633,0.0239142,94078.0,94030.0,0.10711512]
[1732122545847,0.10711512,94077.0,94031.0,0.00106326]
[1732122546063,0.10711512,94077.0,94032.0,0.10711512]
[1732122546274,0.11711512,94077.0,94032.0,0.10711512]
[1732122546528,0.01,94075.0,94032.0,0.10711512]
[1732122546773,0.10711512,94074.0,94033.0,0.00106326]
[1732122546981,0.10711512,94074.0,94034.0,0.10711512]
[1732122547215,0.10711512,94074.0,94035.0,0.10106322]
[1732122547418,0.10711512,94074.0,94037.0,0.1]
[1732122547627,0.10711512,94074.0,94033.0,0.01]
[1732122547628,0.10711512,94074.0,94039.0,0.1]
[1732122547875,0.10711512,94074.0,94041.0,0.1]
[1732122548128,0.04227235,94079.0,94054.0,0.01]
[1732122548612,0.04227235,94079.0,94047.0,0.1503]
[1732122548613,0.04227235,94079.0,94051.0,0.0807]
[1732122548614,0.04227235,94079.0,94055.0,0.10711512]
[1732122548808,0.04227235,94079.0,94057.0,0.1273]
[1732122549047,0.04227235,94079.0,94058.0,0.20711512]
[1732122549479,0.10711512,94078.0,94058.0,0.1]
[1732122549696,0.10711512,94078.0,94048.0,0.0829]
[1732122550138,0.10711512,94078.0,94048.0,0.08396322]
[1732122550587,0.04227235,94079.0,94050.0,0.1]
[1732122550805,0.04227235,94079.0,94050.0,0.20711512]
[1732122551252,0.04398515,94079.0,94050.0,0.20711512]
[1732122552377,0.04398515,94079.0,94051.0,0.00106306]
[1732122552856,0.04398515,94079.0,94053.0,0.1]
[1732122553072,0.04398515,94079.0,94055.0,0.1]
[1732122555504,0.04398515,94079.0,94056.0,0.10817817]
[1732122555721,0.04398515,94079.0,94057.0,0.1]
[1732122555933,0.04398515,94079.0,94057.0,0.20711512]
[1732122556460,0.04398515,94079.0,94057.0,0.1]
[1732122556644,0.15110027,94079.0,94055.0,0.1]
[1732122557984,0.10711512,94078.0,94044.0,0.0753]
[1732122558216,0.0782,94077.0,94044.0,0.0753]
[1732122558449,0.10711512,94076.0,94044.0,0.0753]
[1732122559541,0.02293003,94075.0,94044.0,0.0753]
[1732122559752,0.10711512,94074.0,94044.0,0.0753]
[1732122560254,0.10711512,94074.0,94032.0,0.10711512]
[1732122560524,0.003,94073.0,94032.0,0.10711512]
[1732122560747,0.10711512,94072.0,94031.0,0.0468564]
[1732122560952,0.10711512,94072.0,94031.0,0.15397152]
[1732122561201,0.023,94066.0,94031.0,0.0468564]
[1732122561411,0.01,94064.0,94031.0,0.0468564]
[1732122561618,0.18961512,94063.0,94031.0,0.0008564]
[1732122561839,0.01,94060.0,94031.0,0.0008564]
[1732122562068,0.18961512,94063.0,94031.0,0.0008564]
[1732122562069,0.01,94057.0,94031.0,0.0008564]
[1732122562275,0.10711512,94056.0,94031.0,0.0008564]
[1732122562704,0.0791,94055.0,94031.0,0.0008564]
[1732122562927,0.0791,94049.0,94031.0,0.0008564]
[1732122563159,0.10711512,94048.0,94031.0,0.0008564]
[1732122564132,0.01,94044.0,94031.0,0.0008564]
[1732122564348,0.10711512,94043.0,94031.0,0.0008564]
[1732122566521,0.0008566,94048.0,94031.0,0.0008564]
[1732122566738,0.10711512,94047.0,94031.0,0.0008564]
[1732122568432,0.0807,94046.0,94031.0,0.0008564]
[1732122568666,0.10711512,94045.0,94031.0,0.0008564]
[1732122568903,0.04442549,94048.0,94031.0,0.0008564]
[1732122569349,0.10711512,94047.0,94031.0,0.0008564]
[1732122570195,0.04442549,94048.0,94031.0,0.0008564]
[1732122570403,0.15154061,94048.0,94031.0,0.0008564]
[1732122571571,0.15154061,94048.0,94032.0,0.0495]
[1732122572527,0.04442549,94048.0,94033.0,0.18076334]
[1732122572748,0.04442549,94048.0,94033.0,0.18076329]
[1732122572994,0.04442549,94048.0,94033.0,0.1797]
[1732122575426,0.0008566,94048.0,94037.0,0.01]
[1732122575673,0.0699566,94078.0,94048.0,0.01]
[1732122575883,0.10711512,94077.0,94049.0,0.01]
[1732122576331,0.10711512,94077.0,94048.0,0.01]
[1732122576541,0.10711512,94077.0,94050.0,0.0483]
[1732122576753,0.10711512,94077.0,94057.0,0.01]
[1732122579534,0.04499764,94079.0,94060.0,0.01]
[1732122579738,0.04499764,94079.0,94069.0,0.01]
[1732122579961,0.04499764,94079.0,94073.0,0.01]
[1732122581917,0.04499764,94079.0,94076.0,0.01]
[1732122582114,0.04499764,94079.0,94074.0,0.07686299]
[1732122582115,0.0017128,94079.0,94078.0,0.01]
[1732122582568,0.0017128,94079.0,94078.0,0.11711512]
[1732122582785,0.0017128,94079.0,94078.0,0.26401512]
[1732122583018,0.001715,94101.0,94078.0,0.1602837]
[1732122583216,0.001715,94101.0,94079.0,0.08256269]
[1732122583659,0.04377478,94101.0,94079.0,0.08256269]
[1732122583869,0.001715,94101.0,94079.0,0.08256269]
[1732122584316,0.001715,94101.0,94082.0,0.01]
[1732122584535,0.001715,94101.0,94088.0,0.01]
[1732122584742,0.001715,94101.0,94089.0,0.10817769]
[1732122585152,0.001715,94101.0,94091.0,0.01]
[1732122585391,0.001715,94101.0,94084.0,0.01]
[1732122585392,0.001715,94101.0,94095.0,0.01]
[1732122585598,0.001715,94101.0,94096.0,0.10817761]
[1732122586017,0.04555402,94101.0,94096.0,0.10817761]
[1732122586228,0.001715,94101.0,94097.0,0.1455]
[1732122586445,0.001715,94101.0,94097.0,0.25261512]
[1732122586919,0.001715,94101.0,94099.0,0.1]
[1732122588184,0.001715,94101.0,94097.0,0.0455]
[1732122588825,0.001715,94101.0,94094.0,0.00106261]
[1732122589042,0.001715,94101.0,94092.0,0.0815]
[1732122590578,0.02299813,94113.0,94092.0,0.0815]
[1732122590843,0.0017128,94127.0,94092.0,0.0815]
[1732122591071,0.10711512,94126.0,94095.0,0.01]
[1732122591307,0.10711512,94126.0,94097.0,0.1]
[1732122591507,0.10711512,94126.0,94097.0,0.20711512]
[1732122594232,0.10711512,94126.0,94092.0,0.0815]
[1732122594406,0.10711512,94126.0,94093.0,0.00106262]
[1732122595747,0.10711512,94126.0,94093.0,0.10817774]
[1732122595889,0.10711512,94126.0,94094.0,0.1]
[1732122596796,0.0467,94125.0,94092.0,0.0815]
[1732122596994,0.0467,94125.0,94044.0,0.002]
[1732122596995,0.0831,94123.0,94084.0,0.146]
[1732122597203,0.10711512,94122.0,94084.0,0.146]
[1732122598209,0.10711512,94122.0,94085.0,0.00106268]
[1732122598412,0.10711512,94122.0,94084.0,0.146]
[1732122600493,0.10711512,94122.0,94085.0,0.10711512]
[1732122600708,0.10711512,94122.0,94086.0,0.11]
[1732122600937,0.10711512,94122.0,94087.0,0.1181777]
[1732122601142,0.10711512,94122.0,94088.0,0.1]
[1732122601357,0.10711512,94122.0,94089.0,0.10817769]
[1732122601581,0.10711512,94122.0,94090.0,0.1]
[1732122602672,0.10711512,94122.0,94084.0,0.146]
[1732122602869,0.10711512,94122.0,94084.0,0.1]
[1732122603079,0.10711512,94122.0,94085.0,0.00106268]
[1732122603290,0.10711512,94122.0,94087.0,0.01]
[1732122603507,0.0008559,94126.0,94077.0,0.05201094]
[1732122603508,0.0008559,94126.0,94094.0,0.01]
[1732122603701,0.10711512,94125.0,94095.0,0.10817761]
[1732122603940,0.0008559,94126.0,94098.0,0.01]
[1732122604134,0.0008559,94126.0,94100.0,0.1799]
[1732122604372,0.0008559,94126.0,94101.0,0.10711512]
[1732122604579,0.0008559,94126.0,94105.0,0.01]
[1732122604803,0.0008559,94126.0,94106.0,0.1554775]
[1732122605224,0.0008559,94126.0,94107.0,0.1]
[1732122605631,0.0441364,94127.0,94107.0,0.1]
[1732122605632,0.02799229,94127.0,94107.0,0.1]
[1732122605807,0.0808566,94143.0,94109.0,0.1]
[1732122606057,0.0808566,94143.0,94110.0,0.00106235]
[1732122606263,0.0808566,94143.0,94109.0,0.1]
[1732122606480,0.10797242,94129.0,94109.0,0.1]
[1732122606678,0.15091694,94129.0,94098.0,0.01]
[1732122606889,0.23491512,94128.0,94095.0,0.0483]
[1732122607107,0.23491512,94128.0,94089.0,0.076]
[1732122607319,0.23491512,94128.0,94040.0,0.13586451]
[1732122607320,0.12686163,94127.0,94079.0,0.0777118]
[1732122607534,0.0567,94128.0,94079.0,0.0017118]
[1732122607535,0.10711512,94118.0,94079.0,0.0017118]
[1732122607703,0.18006036,94117.0,94079.0,0.0017118]
[1732122607924,0.15847548,94116.0,94079.0,0.0017118]
[1732122608134,0.05138503,94115.0,94079.0,0.0017118]
[1732122608334,0.1287,94117.0,94079.0,0.0017118]
[1732122608335,0.12687872,94114.0,94079.0,0.0017118]
[1732122608542,0.03162177,94113.0,94079.0,0.0017118]
[1732122608772,0.12687872,94112.0,94079.0,0.0017118]
[1732122608993,0.0197636,94111.0,94079.0,0.0017118]
[1732122609242,0.10711512,94110.0,94079.0,0.0017118]
[1732122609442,0.0197636,94109.0,94079.0,0.0017118]
[1732122609718,0.1287,94117.0,94079.0,0.0017118]
[1732122609719,0.12687872,94108.0,94079.0,0.0017118]
[1732122609962,0.10711512,94108.0,94079.0,0.0017118]
[1732122610173,0.01979032,94107.0,94079.0,0.0017118]
[1732122610391,0.12690544,94106.0,94079.0,0.0017118]
[1732122610608,0.01979032,94105.0,94079.0,0.0017118]
[1732122610839,0.01979032,94104.0,94079.0,0.0017118]
[1732122611046,0.10711512,94103.0,94079.0,0.0017118]
[1732122611469,0.0787,94102.0,94079.0,0.0017118]
[1732122611670,0.1586166,94101.0,94079.0,0.0017118]
[1732122611899,0.05150148,94100.0,94079.0,0.0017118]
[1732122612115,0.1269169,94099.0,94079.0,0.0017118]
[1732122612321,0.01980178,94098.0,94079.0,0.0017118]
[1732122612492,0.1269169,94097.0,94079.0,0.0017118]
[1732122612709,0.01980178,94096.0,94079.0,0.0017118]
[1732122612880,0.10711512,94095.0,94079.0,0.0017118]
[1732122613083,0.01980178,94094.0,94079.0,0.0017118]
[1732122613284,0.1269169,94093.0,94079.0,0.0017118]
[1732122613502,0.01980178,94092.0,94079.0,0.0017118]
[1732122613704,0.10711512,94091.0,94079.0,0.0017118]
[1732122614124,0.0787,94102.0,94079.0,0.0017118]
[1732122614294,0.1388102,94101.0,94079.0,0.0017118]
[1732122614528,0.01980943,94100.0,94079.0,0.0017118]
[1732122614724,0.0787,94102.0,94079.0,0.0017118]
[1732122614725,0.12692455,94099.0,94079.0,0.0017118]
[1732122615131,0.01980943,94098.0,94079.0,0.0017118]
[1732122615402,0.01980943,94098.0,94056.0,0.01]
[1732122615403,0.04403305,94104.0,94068.0,0.1259]
[1732122615626,0.04403305,94104.0,94079.0,0.10711512]
[1732122615847,0.0008556,94122.0,94080.0,0.14996256]
[1732122615848,0.01,94112.0,94080.0,0.14996256]
[1732122616066,0.04243568,94111.0,94082.0,0.023]
[1732122616286,0.01,94112.0,94083.0,0.10711512]
[1732122617137,0.01,94116.0,94084.0,0.00106257]
[1732122617372,0.01,94116.0,94083.0,0.10711512]
[1732122617373,0.01,94112.0,94085.0,0.10711512]
[1732122617606,0.01,94112.0,94086.0,0.1]
[1732122617756,0.01,94112.0,94088.0,0.1]
[1732122618111,0.01,94112.0,94089.0,0.10711512]
[1732122619058,0.01,94112.0,94080.0,0.1259]
[1732122619059,0.01,94110.0,94080.0,0.1259]
[1732122619258,0.01,94110.0,94081.0,0.1]
[1732122619259,0.01,94101.0,94081.0,0.1]
[1732122620117,0.01980609,94100.0,94081.0,0.1]
[1732122620329,0.01,94101.0,94081.0,0.1]
[1732122620559,0.07211512,94109.0,94081.0,0.1]
[1732122620785,0.07211512,94109.0,94080.0,0.1259]
[1732122620786,0.01,94102.0,94080.0,0.1259]
[1732122620978,0.01,94102.0,94028.0,0.23437554]
[1732122620979,0.01,94093.0,94068.0,0.081]
[1732122621230,0.10711512,94092.0,94068.0,0.081]
[1732122621685,0.10711512,94092.0,94069.0,0.00106289]
[1732122621907,0.01,94096.0,94069.0,0.00106289]
[1732122622121,0.10711512,94095.0,94069.0,0.00106289]
[1732122622579,0.10711512,94095.0,94068.0,0.081]
[1732122622580,0.01,94097.0,94068.0,0.081]
[1732122622780,0.10711512,94096.0,94068.0,0.081]
[1732122623416,0.09294206,94107.0,94069.0,0.10817795]
[1732122623628,0.12691779,94106.0,94070.0,0.1]
[1732122623847,0.01980267,94105.0,94071.0,0.1081779]